[Event "Late-Titled-Tuesday-Blitz-September-19-2023"]
[Site "Chess.com"]
[Date "2023.09.19"]
[Round "4"]
[White "SergioMoralesG"]
[Black "ural58"]
[Result "1-0"]
[WhiteElo "2437"]
[BlackElo "2547"]
[TimeControl "180+1"]
[EndTime "14:39:48 PDT"]
[Termination "SergioMoralesG won on time"]

1. d4 {[%clk 0:03:00.9]} 1... d5 {[%clk 0:02:58.4]} 2. c4 {[%clk 0:03:01.1]}
2... e5 {[%clk 0:02:58]} 3. dxe5 {[%clk 0:03:00.5]} 3... d4 {[%clk 0:02:58.1]}
4. Nf3 {[%clk 0:03:01.1]} 4... Nc6 {[%clk 0:02:58.4]} 5. Nbd2 {[%clk 0:03:01.8]}
5... a5 {[%clk 0:02:55]} 6. Nb3 {[%clk 0:02:59.8]} 6... Bg4 {[%clk 0:02:49]} 7.
Nfxd4 {[%clk 0:02:39.8]} 7... Bb4+ {[%clk 0:02:21.5]} 8. Bd2 {[%clk 0:02:39.4]}
8... Nxd4 {[%clk 0:02:20.4]} 9. Bxb4 {[%clk 0:02:32.2]} 9... Nxb3 {[%clk
0:02:18.2]} 10. Qxb3 {[%clk 0:01:33.8]} 10... axb4 {[%clk 0:02:15.7]} 11. Qg3
{[%clk 0:01:34]} 11... Qd4 {[%clk 0:01:09.3]} 12. f3 {[%clk 0:01:33.2]} 12...
Qxb2 {[%clk 0:01:06.9]} 13. Rd1 {[%clk 0:01:33.1]} 13... Qc3+ {[%clk 0:00:53.6]}
14. Kf2 {[%clk 0:01:32.2]} 14... Qxc4 {[%clk 0:00:53.6]} 15. e3 {[%clk
0:01:12.8]} 15... Qxa2+ {[%clk 0:00:49.9]} 16. Be2 {[%clk 0:01:12.4]} 16... Nh6
{[%clk 0:00:47.4]} 17. Ra1 {[%clk 0:01:01.6]} 17... Qxa1 {[%clk 0:00:46.7]} 18.
Rxa1 {[%clk 0:01:02.5]} 18... Rxa1 {[%clk 0:00:46.7]} 19. fxg4 {[%clk
0:00:57.9]} 19... O-O {[%clk 0:00:46.6]} 20. Bc4 {[%clk 0:00:39.8]} 20... Rc1
{[%clk 0:00:39.6]} 21. Qf4 {[%clk 0:00:38.5]} 21... Kh8 {[%clk 0:00:21.9]} 22.
e6 {[%clk 0:00:35.3]} 22... Ng8 {[%clk 0:00:19.3]} 23. exf7 {[%clk 0:00:24]}
23... Nf6 {[%clk 0:00:19.2]} 24. g5 {[%clk 0:00:16.6]} 24... Nd7 {[%clk
0:00:17.4]} 25. Qxc7 {[%clk 0:00:16.4]} 25... Rd1 {[%clk 0:00:17.7]} 26. Be6
{[%clk 0:00:14.6]} 26... g6 {[%clk 0:00:12.2]} 27. Kg3 {[%clk 0:00:12.8]} 27...
Kg7 {[%clk 0:00:10.9]} 28. Qc4 {[%clk 0:00:08.9]} 28... Ne5 {[%clk 0:00:07.8]}
29. Qxb4 {[%clk 0:00:08.2]} 29... Nxf7 {[%clk 0:00:07.7]} 30. Qb2+ {[%clk
0:00:06.3]} 30... Kg8 {[%clk 0:00:07.7]} 31. Qxb7 {[%clk 0:00:06.1]} 31... Rd6
{[%clk 0:00:07.4]} 32. Bxf7+ {[%clk 0:00:05.4]} 32... Kh8 {[%clk 0:00:05]} 33.
h4 {[%clk 0:00:04.1]} 33... h5 {[%clk 0:00:04.1]} 34. Qb2+ {[%clk 0:00:04.3]}
34... Kh7 {[%clk 0:00:03.8]} 35. Bc4 {[%clk 0:00:04.8]} 35... Rfd8 {[%clk
0:00:03.5]} 36. Be2 {[%clk 0:00:04.2]} 36... R6d7 {[%clk 0:00:04]} 37. Qb6
{[%clk 0:00:04.1]} 37... Rd6 {[%clk 0:00:03.4]} 38. Qb7+ {[%clk 0:00:03.9]}
38... R8d7 {[%clk 0:00:04]} 39. Qb4 {[%clk 0:00:04.2]} 39... Re6 {[%clk
0:00:02.6]} 40. Bf3 {[%clk 0:00:04.4]} 40... Rde7 {[%clk 0:00:02.8]} 41. Qb5
{[%clk 0:00:04.2]} 41... Rxe3 {[%clk 0:00:01.9]} 42. Qc5 {[%clk 0:00:04.6]}
42... R3e5 {[%clk 0:00:01.8]} 43. Qd6 {[%clk 0:00:04.6]} 43... R5e6 {[%clk
0:00:02.6]} 44. Qd5 {[%clk 0:00:04.3]} 44... Kg7 {[%clk 0:00:03.3]} 45. Qd4+
{[%clk 0:00:04.3]} 45... Re5 {[%clk 0:00:03.7]} 46. Qc4 {[%clk 0:00:04.9]} 46...
Kf8 {[%clk 0:00:03.9]} 47. Qc6 {[%clk 0:00:05.2]} 47... Kg7 {[%clk 0:00:04.5]}
48. Qc8 {[%clk 0:00:05.7]} 48... R5e6 {[%clk 0:00:04.7]} 49. Qb8 {[%clk
0:00:05.7]} 49... Re5 {[%clk 0:00:04.9]} 50. Qb2 {[%clk 0:00:06.2]} 50... Kh7
{[%clk 0:00:04.2]} 51. Kf4 {[%clk 0:00:06.6]} 51... R5e6 {[%clk 0:00:03.7]} 52.
Kg3 {[%clk 0:00:07.1]} 52... Re5 {[%clk 0:00:03.9]} 53. Qd4 {[%clk 0:00:07.5]}
53... R5e6 {[%clk 0:00:03.8]} 54. Bd1 {[%clk 0:00:07.5]} 54... Re3+ {[%clk
0:00:03.7]} 55. Kh2 {[%clk 0:00:07.7]} 55... R3e4 {[%clk 0:00:03.8]} 56. Qf2
{[%clk 0:00:05.6]} 56... Kg7 {[%clk 0:00:02.6]} 57. Bc2 {[%clk 0:00:05.7]} 57...
R4e6 {[%clk 0:00:02.2]} 58. Qd4+ {[%clk 0:00:05.9]} 58... Kh7 {[%clk 0:00:02.6]}
59. Qd3 {[%clk 0:00:06.5]} 59... Rg7 {[%clk 0:00:01.8]} 60. g3 {[%clk
0:00:05.5]} 60... Ree7 {[%clk 0:00:02.2]} 61. Kh3 {[%clk 0:00:06]} 61... Rd7
{[%clk 0:00:02.1]} 62. Qc3 {[%clk 0:00:06]} 62... Rc7 {[%clk 0:00:02.7]} 63. Qb3
{[%clk 0:00:05.4]} 63... Rb7 {[%clk 0:00:03]} 64. Qd3 {[%clk 0:00:05.2]} 64...
Rbd7 {[%clk 0:00:03.4]} 65. Qe4 {[%clk 0:00:05.3]} 65... Rde7 {[%clk 0:00:03.8]}
66. Qf3 {[%clk 0:00:05.5]} 66... Ref7 {[%clk 0:00:03.8]} 67. Qe2 {[%clk
0:00:04.5]} 67... Kh8 {[%clk 0:00:03.1]} 68. Be4 {[%clk 0:00:04.8]} 68... Re7
{[%clk 0:00:03.1]} 69. Qd3 {[%clk 0:00:05.3]} 69... Kh7 {[%clk 0:00:03]} 70. Qc2
{[%clk 0:00:04.8]} 70... Rc7 {[%clk 0:00:03]} 71. Qd3 {[%clk 0:00:04.4]} 71...
Rcd7 {[%clk 0:00:03.3]} 72. Qb1 {[%clk 0:00:04.9]} 72... Rde7 {[%clk 0:00:03.9]}
73. Qd3 {[%clk 0:00:04.8]} 73... Rd7 {[%clk 0:00:04.2]} 74. Qf3 {[%clk
0:00:04.9]} 74... Rdf7 {[%clk 0:00:04.3]} 75. Qe3 {[%clk 0:00:04.3]} 75... Re7
{[%clk 0:00:04.1]} 76. Qf3 {[%clk 0:00:04.4]} 76... Kg8 {[%clk 0:00:04.2]} 77.
Bd3 {[%clk 0:00:04]} 77... Rd7 {[%clk 0:00:03.4]} 78. Bc4+ {[%clk 0:00:04.1]}
78... Kh7 {[%clk 0:00:03.7]} 79. Qf4 {[%clk 0:00:03.9]} 79... Rdf7 {[%clk
0:00:03.7]} 80. Qe4 {[%clk 0:00:03.9]} 80... Re7 {[%clk 0:00:04]} 81. Qd3 {[%clk
0:00:04.3]} 81... Rd7 {[%clk 0:00:04.2]} 82. Qe2 {[%clk 0:00:04.9]} 82... Rde7
{[%clk 0:00:04.3]} 83. Qc2 {[%clk 0:00:05.1]} 83... Rc7 {[%clk 0:00:04.6]} 84.
Qd3 {[%clk 0:00:05.2]} 84... Rgd7 {[%clk 0:00:04.2]} 85. Qe2 {[%clk 0:00:05.4]}
85... Re7 {[%clk 0:00:03.8]} 86. Qf1 {[%clk 0:00:06]} 86... Rg7 {[%clk
0:00:03.7]} 87. Bd3 {[%clk 0:00:05.4]} 87... Rcd7 {[%clk 0:00:03]} 88. Qe2
{[%clk 0:00:05.6]} 88... Kh8 {[%clk 0:00:02.9]} 89. Qe8+ {[%clk 0:00:04.5]}
89... Kh7 {[%clk 0:00:03.1]} 90. Bxg6+ {[%clk 0:00:04.9]} 1-0

[Event "Late-Titled-Tuesday-Blitz-September-19-2023"]
[Site "Chess.com"]
[Date "2023.09.19"]
[Round "5"]
[White "MalyDominator"]
[Black "MajorCoast"]
[Result "0-1"]
[WhiteElo "2434"]
[BlackElo "2299"]
[TimeControl "180+1"]
[EndTime "14:49:41 PDT"]
[Termination "MajorCoast won by resignation"]

1. d4 {[%clk 0:03:00.9]} 1... d5 {[%clk 0:02:58.6]} 2. Nf3 {[%clk 0:03:00.2]}
2... Nf6 {[%clk 0:02:58.3]} 3. Ne5 {[%clk 0:03:00.4]} 3... c5 {[%clk 0:02:34.8]}
4. g3 {[%clk 0:02:54.7]} 4... e6 {[%clk 0:02:29.9]} 5. Bg2 {[%clk 0:02:52.9]}
5... cxd4 {[%clk 0:02:25.8]} 6. Qxd4 {[%clk 0:02:52.4]} 6... Nc6 {[%clk
0:02:25.6]} 7. Nxc6 {[%clk 0:02:52.3]} 7... bxc6 {[%clk 0:02:26.5]} 8. O-O
{[%clk 0:02:52.5]} 8... Qb6 {[%clk 0:02:22.1]} 9. Qh4 {[%clk 0:02:50.1]} 9...
Be7 {[%clk 0:02:20]} 10. Nc3 {[%clk 0:02:48.9]} 10... Ba6 {[%clk 0:02:12.2]} 11.
Rd1 {[%clk 0:02:42.7]} 11... Ne4 {[%clk 0:02:06.2]} 12. Qg4 {[%clk 0:02:39.9]}
12... Nxf2 {[%clk 0:01:47.8]} 13. Qd4 {[%clk 0:02:29.3]} 13... Bc5 {[%clk
0:01:42.2]} 14. Qxg7 {[%clk 0:02:28.7]} 14... Nxd1+ {[%clk 0:01:34.8]} 15. Kf1
{[%clk 0:02:29.6]} 15... Bd4 {[%clk 0:01:31.2]} 0-1

[Event "Late-Titled-Tuesday-Blitz-September-19-2023"]
[Site "Chess.com"]
[Date "2023.09.19"]
[Round "5"]
[White "Tonychess32"]
[Black "jk13"]
[Result "0-1"]
[WhiteElo "2501"]
[BlackElo "2639"]
[TimeControl "180+1"]
[EndTime "14:50:02 PDT"]
[Termination "jk13 won by resignation"]

1. e4 {[%clk 0:02:59.6]} 1... e5 {[%clk 0:02:58.6]} 2. Bc4 {[%clk 0:02:59.5]}
2... Nf6 {[%clk 0:02:58.4]} 3. d3 {[%clk 0:02:59.7]} 3... Nc6 {[%clk 0:02:58.2]}
4. Nf3 {[%clk 0:02:59.7]} 4... Bc5 {[%clk 0:02:57.7]} 5. O-O {[%clk 0:02:58.7]}
5... O-O {[%clk 0:02:58.2]} 6. c3 {[%clk 0:02:58.8]} 6... d5 {[%clk 0:02:58.1]}
7. exd5 {[%clk 0:02:58.9]} 7... Nxd5 {[%clk 0:02:59]} 8. Re1 {[%clk 0:02:57.7]}
8... Bg4 {[%clk 0:02:58.6]} 9. h3 {[%clk 0:02:57.6]} 9... Bh5 {[%clk 0:02:59.2]}
10. Nbd2 {[%clk 0:02:57.8]} 10... Nb6 {[%clk 0:02:59.3]} 11. Bb5 {[%clk
0:02:53.6]} 11... Re8 {[%clk 0:02:52.7]} 12. Bxc6 {[%clk 0:02:52.3]} 12... bxc6
{[%clk 0:02:50.2]} 13. g4 {[%clk 0:02:50.9]} 13... Bg6 {[%clk 0:02:49.7]} 14.
Nxe5 {[%clk 0:02:50.8]} 14... Bxd3 {[%clk 0:02:13.4]} 15. Qf3 {[%clk 0:02:45.8]}
15... Bg6 {[%clk 0:02:11.4]} 16. Nb3 {[%clk 0:02:27.7]} 16... Bd6 {[%clk
0:02:03]} 17. Nxc6 {[%clk 0:02:19.4]} 17... Rxe1+ {[%clk 0:02:02.1]} 18. Kg2
{[%clk 0:02:16.9]} 18... Be4 {[%clk 0:01:50.3]} 19. Nxd8 {[%clk 0:02:11.8]}
19... Bxf3+ {[%clk 0:01:48.4]} 20. Kxf3 {[%clk 0:02:12.1]} 20... Rxd8 {[%clk
0:01:48.7]} 21. Bg5 {[%clk 0:02:11.3]} 21... Rxa1 {[%clk 0:01:49.4]} 22. Bxd8
{[%clk 0:02:11.2]} 22... Rxa2 {[%clk 0:01:48.8]} 0-1

[Event "Late-Titled-Tuesday-Blitz-September-19-2023"]
[Site "Chess.com"]
[Date "2023.09.19"]
[Round "5"]
[White "ilya2700"]
[Black "Der_Honigdachs"]
[Result "0-1"]
[WhiteElo "2297"]
[BlackElo "2522"]
[TimeControl "180+1"]
[EndTime "14:50:16 PDT"]
[Termination "Der_Honigdachs won by resignation"]

1. c4 {[%clk 0:03:00.9]} 1... g6 {[%clk 0:02:57.7]} 2. d4 {[%clk 0:02:59.7]}
2... Nf6 {[%clk 0:02:56.5]} 3. Nc3 {[%clk 0:02:58.7]} 3... d5 {[%clk 0:02:57.2]}
4. Nf3 {[%clk 0:02:56]} 4... Bg7 {[%clk 0:02:56.8]} 5. h4 {[%clk 0:02:56.7]}
5... c5 {[%clk 0:02:55.9]} 6. cxd5 {[%clk 0:02:49.1]} 6... Nxd5 {[%clk
0:02:54.4]} 7. h5 {[%clk 0:02:49.5]} 7... Nc6 {[%clk 0:02:51]} 8. Nxd5 {[%clk
0:02:40.9]} 8... Qxd5 {[%clk 0:02:50.3]} 9. hxg6 {[%clk 0:02:31.2]} 9... hxg6
{[%clk 0:02:48.3]} 10. Rxh8+ {[%clk 0:02:30.7]} 10... Bxh8 {[%clk 0:02:49]} 11.
dxc5 {[%clk 0:02:18]} 11... Qxc5 {[%clk 0:02:47]} 12. Qa4 {[%clk 0:02:07]} 12...
Qb4+ {[%clk 0:02:10.3]} 13. Qxb4 {[%clk 0:02:06.1]} 13... Nxb4 {[%clk
0:02:11.1]} 14. Kd2 {[%clk 0:02:02.1]} 14... Bf5 {[%clk 0:02:08.2]} 15. Ne1
{[%clk 0:02:02.8]} 15... O-O-O+ {[%clk 0:02:03.7]} 16. Ke3 {[%clk 0:02:02.6]}
16... Rd1 {[%clk 0:02:02.1]} 17. a3 {[%clk 0:01:47.9]} 17... Nd5+ {[%clk
0:01:52]} 18. Kf3 {[%clk 0:01:47.9]} 18... Rxe1 {[%clk 0:01:51.2]} 19. Bd2
{[%clk 0:01:45.1]} 19... Rxa1 {[%clk 0:01:49.9]} 0-1

[Event "Late-Titled-Tuesday-Blitz-September-19-2023"]
[Site "Chess.com"]
[Date "2023.09.19"]
[Round "5"]
[White "Jarming"]
[Black "szachmistrz2500"]
[Result "1-0"]
[WhiteElo "2731"]
[BlackElo "2502"]
[TimeControl "180+1"]
[EndTime "14:51:39 PDT"]
[Termination "Jarming won by resignation"]

1. d4 {[%clk 0:03:00.9]} 1... Nf6 {[%clk 0:02:57.9]} 2. c4 {[%clk 0:03:00.5]}
2... e6 {[%clk 0:02:57.7]} 3. Nf3 {[%clk 0:02:59.3]} 3... b6 {[%clk 0:02:55.3]}
4. g3 {[%clk 0:02:59]} 4... Bb7 {[%clk 0:02:54.1]} 5. Bg2 {[%clk 0:02:59.2]}
5... Bb4+ {[%clk 0:02:50]} 6. Bd2 {[%clk 0:02:56.4]} 6... Qe7 {[%clk 0:02:48.6]}
7. O-O {[%clk 0:02:55.3]} 7... O-O {[%clk 0:02:48.3]} 8. Nc3 {[%clk 0:02:54.7]}
8... Bxc3 {[%clk 0:02:47.6]} 9. Bxc3 {[%clk 0:02:55.6]} 9... Ne4 {[%clk
0:02:47.8]} 10. Rc1 {[%clk 0:02:56.2]} 10... Nxc3 {[%clk 0:02:46.6]} 11. Rxc3
{[%clk 0:02:57.1]} 11... d6 {[%clk 0:02:46.6]} 12. a3 {[%clk 0:02:53.7]} 12...
Nd7 {[%clk 0:02:44.4]} 13. b4 {[%clk 0:02:53.3]} 13... a5 {[%clk 0:02:44.6]} 14.
Qc2 {[%clk 0:02:51.9]} 14... axb4 {[%clk 0:02:44.3]} 15. axb4 {[%clk 0:02:51.5]}
15... f5 {[%clk 0:02:33.9]} 16. d5 {[%clk 0:02:48.7]} 16... e5 {[%clk
0:02:28.9]} 17. Qb2 {[%clk 0:02:36.3]} 17... Ra7 {[%clk 0:02:16.6]} 18. Ra1
{[%clk 0:02:34.5]} 18... Rfa8 {[%clk 0:02:15.2]} 19. Rca3 {[%clk 0:02:25.5]}
19... Rxa3 {[%clk 0:02:05.9]} 20. Rxa3 {[%clk 0:02:26.4]} 20... b5 {[%clk
0:01:30.1]} 21. Nd2 {[%clk 0:02:19.2]} 21... Nb6 {[%clk 0:01:16.9]} 22. c5
{[%clk 0:01:58.2]} 22... Rxa3 {[%clk 0:00:56.5]} 23. Qxa3 {[%clk 0:01:59.1]}
23... Nxd5 {[%clk 0:00:55.2]} 24. Qa7 {[%clk 0:01:50.9]} 24... c6 {[%clk
0:00:53.9]} 25. cxd6 {[%clk 0:01:50.3]} 25... Qd7 {[%clk 0:00:51.4]} 26. Nb3
{[%clk 0:01:49.9]} 26... Bc8 {[%clk 0:00:51.5]} 27. Qxd7 {[%clk 0:01:46.6]}
27... Bxd7 {[%clk 0:00:51.7]} 28. Bxd5+ {[%clk 0:01:47.2]} 28... cxd5 {[%clk
0:00:51.4]} 29. Nc5 {[%clk 0:01:48.1]} 29... Bc6 {[%clk 0:00:47.1]} 30. d7
{[%clk 0:01:47.9]} 1-0

[Event "Late-Titled-Tuesday-Blitz-September-19-2023"]
[Site "Chess.com"]
[Date "2023.09.19"]
[Round "5"]
[White "fyall777"]
[Black "Balla_Tamas"]
[Result "1-0"]
[WhiteElo "2561"]
[BlackElo "2423"]
[TimeControl "180+1"]
[EndTime "14:51:40 PDT"]
[Termination "fyall777 won by resignation"]

1. e4 {[%clk 0:02:45.2]} 1... c5 {[%clk 0:02:59.9]} 2. Nf3 {[%clk 0:02:45.2]}
2... Nc6 {[%clk 0:03:00.1]} 3. d4 {[%clk 0:02:46.1]} 3... cxd4 {[%clk
0:03:00.2]} 4. Nxd4 {[%clk 0:02:46.9]} 4... e5 {[%clk 0:03:00.7]} 5. Nf5 {[%clk
0:02:45]} 5... d5 {[%clk 0:02:56.8]} 6. exd5 {[%clk 0:02:43.6]} 6... Bxf5 {[%clk
0:02:43.1]} 7. dxc6 {[%clk 0:02:39.5]} 7... Qxd1+ {[%clk 0:02:38.5]} 8. Kxd1
{[%clk 0:02:39]} 8... bxc6 {[%clk 0:02:39.4]} 9. Bd3 {[%clk 0:02:37]} 9... Bxd3
{[%clk 0:02:39]} 10. cxd3 {[%clk 0:02:36.2]} 10... Nf6 {[%clk 0:02:39.6]} 11.
Nc3 {[%clk 0:02:35.1]} 11... Nd5 {[%clk 0:02:39.2]} 12. Be3 {[%clk 0:02:30.6]}
12... Bb4 {[%clk 0:02:32.7]} 13. Rc1 {[%clk 0:02:28.3]} 13... Bxc3 {[%clk
0:02:25.9]} 14. bxc3 {[%clk 0:02:27.9]} 14... Ke7 {[%clk 0:02:23.8]} 15. c4
{[%clk 0:02:21.5]} 15... Nxe3+ {[%clk 0:02:16.2]} 16. fxe3 {[%clk 0:02:21.4]}
16... Rab8 {[%clk 0:02:14.5]} 17. Kc2 {[%clk 0:02:21.6]} 17... Kd6 {[%clk
0:02:12.1]} 18. Rb1 {[%clk 0:02:18.2]} 18... f6 {[%clk 0:02:10.8]} 19. Rb3
{[%clk 0:02:13.2]} 19... Rb6 {[%clk 0:02:09.1]} 20. d4 {[%clk 0:02:13.2]} 20...
exd4 {[%clk 0:01:49.4]} 21. exd4 {[%clk 0:02:11.4]} 21... Rxb3 {[%clk
0:01:49.7]} 22. axb3 {[%clk 0:02:09.7]} 22... Re8 {[%clk 0:01:49.8]} 23. Kd3
{[%clk 0:02:01.3]} 23... Re7 {[%clk 0:01:48.5]} 24. Ra1 {[%clk 0:02:00.1]} 24...
f5 {[%clk 0:01:47.3]} 25. Ra6 {[%clk 0:01:59.1]} 25... f4 {[%clk 0:01:34.9]} 26.
d5 {[%clk 0:01:53.9]} 26... Re3+ {[%clk 0:01:33.7]} 27. Kd4 {[%clk 0:01:51.9]}
27... Rxb3 {[%clk 0:01:34]} 28. Rxc6+ {[%clk 0:01:51.8]} 28... Kd7 {[%clk
0:01:33.2]} 29. Ra6 {[%clk 0:01:50.8]} 29... Rb2 {[%clk 0:01:15.2]} 30. Rxa7+
{[%clk 0:01:49]} 30... Ke8 {[%clk 0:01:09.3]} 31. Rxg7 {[%clk 0:01:48.4]} 31...
h5 {[%clk 0:01:09.6]} 32. c5 {[%clk 0:01:44.1]} 32... Rb1 {[%clk 0:01:05.4]} 33.
c6 {[%clk 0:01:42]} 33... Kd8 {[%clk 0:01:04.1]} 34. d6 {[%clk 0:01:37.8]} 1-0

[Event "Late-Titled-Tuesday-Blitz-September-19-2023"]
[Site "Chess.com"]
[Date "2023.09.19"]
[Round "5"]
[White "arminmusovic"]
[Black "picturesquecheck"]
[Result "0-1"]
[WhiteElo "2519"]
[BlackElo "2377"]
[TimeControl "180+1"]
[EndTime "14:51:40 PDT"]
[Termination "picturesquecheck won by checkmate"]

1. e4 {[%clk 0:03:00.9]} 1... e5 {[%clk 0:02:58.7]} 2. Nf3 {[%clk 0:03:00.9]}
2... Nc6 {[%clk 0:02:59.1]} 3. Nc3 {[%clk 0:03:01.6]} 3... Nf6 {[%clk
0:02:59.1]} 4. a3 {[%clk 0:03:02.3]} 4... d5 {[%clk 0:02:58.2]} 5. Bb5 {[%clk
0:03:02]} 5... Nxe4 {[%clk 0:02:56.6]} 6. Qe2 {[%clk 0:03:00.5]} 6... Nxc3
{[%clk 0:02:52.6]} 7. Qxe5+ {[%clk 0:03:00.8]} 7... Qe7 {[%clk 0:02:51.7]} 8.
dxc3 {[%clk 0:02:59.8]} 8... Bd7 {[%clk 0:02:50.3]} 9. Qxe7+ {[%clk 0:02:50.5]}
9... Bxe7 {[%clk 0:02:51.2]} 10. Bf4 {[%clk 0:02:50]} 10... O-O-O {[%clk
0:02:50]} 11. O-O-O {[%clk 0:02:49.5]} 11... Bg4 {[%clk 0:02:42]} 12. Bxc6
{[%clk 0:02:45.4]} 12... bxc6 {[%clk 0:02:42.9]} 13. Rde1 {[%clk 0:02:46.1]}
13... Bf6 {[%clk 0:02:39.9]} 14. Ne5 {[%clk 0:02:44.9]} 14... Bxe5 {[%clk
0:02:38.7]} 15. Bxe5 {[%clk 0:02:44.3]} 15... Rhg8 {[%clk 0:02:39]} 16. Bd4
{[%clk 0:02:43.5]} 16... Kb7 {[%clk 0:02:37.9]} 17. Re7 {[%clk 0:02:32.8]} 17...
Be6 {[%clk 0:02:35.8]} 18. Re1 {[%clk 0:02:32.9]} 18... g6 {[%clk 0:02:34.6]}
19. f4 {[%clk 0:02:27.9]} 19... Rge8 {[%clk 0:02:32.9]} 20. Rxe8 {[%clk
0:02:23.7]} 20... Rxe8 {[%clk 0:02:33.8]} 21. Kd2 {[%clk 0:02:20.8]} 21... Rd8
{[%clk 0:02:33.6]} 22. a4 {[%clk 0:02:17.5]} 22... h5 {[%clk 0:02:33.5]} 23. b4
{[%clk 0:02:17.2]} 23... a6 {[%clk 0:02:33.6]} 24. h3 {[%clk 0:02:16.6]} 24...
Re8 {[%clk 0:02:27.9]} 25. Rg1 {[%clk 0:02:11.5]} 25... Bd7 {[%clk 0:02:26.5]}
26. g4 {[%clk 0:02:11.3]} 26... hxg4 {[%clk 0:02:26.3]} 27. hxg4 {[%clk
0:02:12.2]} 27... Re4 {[%clk 0:02:25.8]} 28. Be3 {[%clk 0:02:12.8]} 28... Re8
{[%clk 0:02:24.6]} 29. g5 {[%clk 0:02:10.5]} 29... Rh8 {[%clk 0:02:23.7]} 30.
Rg2 {[%clk 0:02:11.2]} 30... Rh3 {[%clk 0:02:22.7]} 31. Bd4 {[%clk 0:02:09.9]}
31... Bf5 {[%clk 0:02:22]} 32. Re2 {[%clk 0:02:09.3]} 32... Be6 {[%clk
0:02:22.2]} 33. Be5 {[%clk 0:02:05.3]} 33... Rh1 {[%clk 0:02:21.8]} 34. a5
{[%clk 0:01:56.3]} 34... c5 {[%clk 0:02:18.2]} 35. bxc5 {[%clk 0:01:52.7]} 35...
Kc6 {[%clk 0:02:17.4]} 36. c4 {[%clk 0:01:33.8]} 36... dxc4 {[%clk 0:02:15.8]}
37. Kc3 {[%clk 0:01:33.4]} 37... Ra1 {[%clk 0:02:13.7]} 38. Kb4 {[%clk
0:01:21.1]} 38... Rb1+ {[%clk 0:02:12.6]} 39. Kc3 {[%clk 0:01:20.9]} 39... Rb5
{[%clk 0:02:12.4]} 40. Bd4 {[%clk 0:01:18.7]} 40... Rxa5 {[%clk 0:02:11.9]} 41.
Rh2 {[%clk 0:01:19.4]} 41... Ra3+ {[%clk 0:02:10.5]} 42. Kb2 {[%clk 0:01:19.1]}
42... Rf3 {[%clk 0:02:10.3]} 43. Be5 {[%clk 0:01:18.1]} 43... Kxc5 {[%clk
0:02:04.7]} 44. Bxc7 {[%clk 0:01:17.4]} 44... c3+ {[%clk 0:01:59.1]} 45. Ka3
{[%clk 0:01:18]} 45... Kc4 {[%clk 0:01:58.9]} 46. Be5 {[%clk 0:01:17.3]} 46...
Rf1 {[%clk 0:01:58.6]} 47. Ka2 {[%clk 0:01:13.4]} 47... Kb4# {[%clk 0:01:58]}
0-1

[Event "Late-Titled-Tuesday-Blitz-September-19-2023"]
[Site "Chess.com"]
[Date "2023.09.19"]
[Round "5"]
[White "ValeriyGrinev"]
[Black "ATM622"]
[Result "0-1"]
[WhiteElo "2555"]
[BlackElo "2465"]
[TimeControl "180+1"]
[EndTime "14:51:45 PDT"]
[Termination "ATM622 won by resignation"]

1. e4 {[%clk 0:03:00.9]} 1... c6 {[%clk 0:02:54.2]} 2. d4 {[%clk 0:03:00.1]}
2... d5 {[%clk 0:02:54.8]} 3. e5 {[%clk 0:03:00.7]} 3... c5 {[%clk 0:02:53.5]}
4. dxc5 {[%clk 0:02:58.5]} 4... e6 {[%clk 0:02:53.3]} 5. a3 {[%clk 0:02:55.5]}
5... Bxc5 {[%clk 0:02:53.7]} 6. b4 {[%clk 0:02:54]} 6... Bb6 {[%clk 0:02:53.7]}
7. Nf3 {[%clk 0:02:51.1]} 7... Ne7 {[%clk 0:02:53.9]} 8. Bb2 {[%clk 0:02:49]}
8... O-O {[%clk 0:02:47.4]} 9. Bd3 {[%clk 0:02:49.5]} 9... f5 {[%clk 0:02:45.4]}
10. exf6 {[%clk 0:02:47.3]} 10... gxf6 {[%clk 0:02:45.9]} 11. c4 {[%clk
0:02:44.9]} 11... dxc4 {[%clk 0:02:44.5]} 12. Bxc4 {[%clk 0:02:43.2]} 12...
Qxd1+ {[%clk 0:02:45.4]} 13. Kxd1 {[%clk 0:02:42.9]} 13... Bxf2 {[%clk
0:02:43.4]} 14. Nbd2 {[%clk 0:02:40]} 14... Nbc6 {[%clk 0:02:39.5]} 15. Ne4
{[%clk 0:02:39]} 15... Rd8+ {[%clk 0:02:31.1]} 16. Ke2 {[%clk 0:02:38.5]} 16...
Bd4 {[%clk 0:02:30.6]} 17. Nxf6+ {[%clk 0:02:35.9]} 17... Kf7 {[%clk 0:02:29.7]}
18. Nxd4 {[%clk 0:02:01]} 18... Nxd4+ {[%clk 0:02:28.2]} 19. Kd3 {[%clk
0:01:48.5]} 19... Nb3+ {[%clk 0:02:24.9]} 20. Ke4 {[%clk 0:01:47.7]} 20... Nxa1
{[%clk 0:02:24.2]} 21. Rxa1 {[%clk 0:01:46.2]} 21... b5 {[%clk 0:02:07.6]} 22.
Bxb5 {[%clk 0:01:38.7]} 22... Bb7+ {[%clk 0:02:06.8]} 23. Ke3 {[%clk 0:01:35.6]}
23... Bxg2 {[%clk 0:02:00.8]} 24. Nxh7 {[%clk 0:01:32.6]} 24... Nf5+ {[%clk
0:01:57.8]} 25. Kf2 {[%clk 0:01:31.9]} 25... Rd2+ {[%clk 0:01:56.7]} 26. Be2
{[%clk 0:01:31.7]} 26... Rxb2 {[%clk 0:01:56]} 27. Ng5+ {[%clk 0:01:32.4]} 27...
Kf6 {[%clk 0:01:56]} 28. Re1 {[%clk 0:01:22.6]} 28... Kxg5 {[%clk 0:01:52.3]}
29. Kxg2 {[%clk 0:01:22.8]} 29... Kf4 {[%clk 0:01:50]} 30. Kh1 {[%clk
0:01:18.9]} 30... Ne3 {[%clk 0:01:43.9]} 31. Bb5 {[%clk 0:01:14.6]} 31... Rh8
{[%clk 0:01:43.6]} 32. Bc6 {[%clk 0:01:12.4]} 32... Rhxh2+ {[%clk 0:01:37.9]}
33. Kg1 {[%clk 0:01:12.6]} 33... e5 {[%clk 0:01:37.6]} 34. b5 {[%clk 0:01:11]}
34... e4 {[%clk 0:01:37.7]} 35. Re2 {[%clk 0:01:08.9]} 35... Rbxe2 {[%clk
0:01:35.4]} 0-1

[Event "Late-Titled-Tuesday-Blitz-September-19-2023"]
[Site "Chess.com"]
[Date "2023.09.19"]
[Round "5"]
[White "emeli_chess"]
[Black "martinez_95"]
[Result "1-0"]
[WhiteElo "2358"]
[BlackElo "2189"]
[TimeControl "180+1"]
[EndTime "14:51:46 PDT"]
[Termination "emeli_chess won by resignation"]

1. d4 {[%clk 0:03:00.9]} 1... d5 {[%clk 0:02:52.6]} 2. c4 {[%clk 0:03:00.8]}
2... e5 {[%clk 0:02:52.3]} 3. dxe5 {[%clk 0:03:00.5]} 3... Ne7 {[%clk
0:02:51.9]} 4. Nf3 {[%clk 0:02:57.8]} 4... Nbc6 {[%clk 0:02:50.4]} 5. e3 {[%clk
0:02:42.1]} 5... Be6 {[%clk 0:02:49.9]} 6. Nbd2 {[%clk 0:02:33.2]} 6... h6
{[%clk 0:02:28]} 7. Be2 {[%clk 0:02:31.1]} 7... g5 {[%clk 0:02:25.5]} 8. O-O
{[%clk 0:02:27.1]} 8... Bg7 {[%clk 0:02:24.4]} 9. Nd4 {[%clk 0:02:21.1]} 9...
Qd7 {[%clk 0:02:04.7]} 10. Nxe6 {[%clk 0:02:19.3]} 10... Qxe6 {[%clk 0:02:05.6]}
11. f4 {[%clk 0:02:18.7]} 11... O-O-O {[%clk 0:01:47.1]} 12. Bg4 {[%clk
0:02:17.9]} 12... Nf5 {[%clk 0:01:39.2]} 13. cxd5 {[%clk 0:02:11.9]} 13... Rxd5
{[%clk 0:01:35.8]} 14. e4 {[%clk 0:02:03.5]} 14... Ncd4 {[%clk 0:01:35.7]} 15.
exd5 {[%clk 0:01:50.4]} 15... Qb6 {[%clk 0:01:07]} 16. Kh1 {[%clk 0:01:42.9]}
16... h5 {[%clk 0:01:03]} 17. Bxf5+ {[%clk 0:01:42]} 17... Nxf5 {[%clk
0:01:03.1]} 18. Nf3 {[%clk 0:01:35.8]} 18... h4 {[%clk 0:01:02]} 19. Nxg5 {[%clk
0:01:24.3]} 19... f6 {[%clk 0:00:55.5]} 20. Nh3 {[%clk 0:01:22.5]} 1-0